Cogmind - Beta 12 @@@ ROGUE MODE // 2023.12.04 @ 15:58:41 Player: wchar_t Result: Destroyed by H-66 Slayer with Gauss Rifle Performance ------------- Evolutions (5) 2500 Regions Visited (13) 2600 Robots Destroyed (154) 770 Value Destroyed (7536) 7536 Prototype IDs (25) 500 Alien Tech Used (0) 0 Bonus (5598) 5598 TOTAL SCORE: 19504 Bonus ------- Triggered High Security 500 High Alert Combat Kills 2179 Follower Combat Kills 1404 Entered Garrisons 600 Used RIF Installer 1500 Aligned with FarCom 300 Friendly Fire -885 Cogmind --------- Core Integrity 0/1000 Matter 232/300 Energy 100/100 System Corruption 8% Temperature Cool (0) Movement Core (50) Location -5/Extension Parts ------- > --- POWER (1) -------- (None) > --- PROPULSION (5) --- (None) > --- UTILITY (8) ------ Enhanced Optical Array Advanced Melee Analysis Suite Advanced Melee Analysis Suite Improved Utility Shielding Relay Coupler [NC] (31) Relay Coupler [Grunt] (10) > --- WEAPON (3) ------- (None) > --- INVENTORY (5) ---- Light Quantum Reactor Improved Heavy Treads Carbon-fiber Leg Relay Coupler [Behemoth] (13) Peak State ------------ > --- POWER ------------ Micro Nuclear Core > --- PROPULSION ------- Carbon-fiber Leg Carbon-fiber Leg Flexi-carbon Leg Myomer Leg Myomer Leg > --- UTILITY ---------- Large Storage Unit Enhanced Optical Array Advanced Melee Analysis Suite Advanced Melee Analysis Suite Improved Medium Armor Plating Hacking Suite Relay Coupler [NC] Relay Coupler [Grunt] > --- WEAPON ----------- Heavy Phase Cannon Remote Datajack Powered Hammer > --- INVENTORY -------- Light Quantum Reactor Improved Heavy Treads Flexi-carbon Leg Flexi-carbon Leg Armored Leg Modified TNC Advanced Melee Analysis Suite Relay Coupler [Grunt] Relay Coupler [Behemoth] Heavy Missile Launcher Powered Hammer Axe Blade Saw [Rating: 77] Favorites ----------- Power Improved Ion Engine Engine Improved Ion Engine Power Core Micro Nuclear Core Propulsion Carbon-fiber Leg Treads Improved Heavy Treads Leg Carbon-fiber Leg Utility Large Storage Unit Device Improved Shield Generator Storage Large Storage Unit Processor Advanced Melee Analysis Suite Hackware Hacking Suite Protection Improved Light Armor Plating Weapon Powered Hammer Energy Gun Medium Laser Energy Cannon Beam Cannon Ballistic Gun Heavy Assault Rifle Ballistic Cannon Light Cannon Launcher Heavy Missile Launcher Special Weapon Remote Datajack Impact Weapon Powered Hammer Slashing Weapon Axe Build | -11 -10 -10 -10 -9 -8 -8 -8 -7 -7 -6 -6 -5 -5 ------- Run | Jun Mat Min Exi Min Mat Gar Mat Fac Gar Fac Gar Fac Ext Slots Evolved 10 | . . . . . 4 . . 2 . 2 . 2 . Power . | . . . . . . . . . . . . . . Propulsion 3 | . . . . . 2 . . . . 1 . . . Utility 6 | . . . . . 2 . . 2 . 1 . 1 . Weapon 1 | . . . . . . . . . . . . 1 . Parts Attached 173 | 7 4 . . 1 22 9 4 4 28 17 40 7 30 Power 9 | 1 . . . . 2 . 1 1 1 1 2 . . Engine 8 | 1 . . . . 2 . 1 1 1 1 1 . . Core 1 | . . . . . . . . . . . 1 . . Reactor . | . . . . . . . . . . . . . . Propulsion 51 | 2 . . . . 9 . 1 1 8 5 10 1 14 Treads 7 | . . . . . 1 . . 1 2 . 1 1 1 Leg 44 | 2 . . . . 8 . 1 . 6 5 9 . 13 Wheel . | . . . . . . . . . . . . . . Hover . | . . . . . . . . . . . . . . Flight . | . . . . . . . . . . . . . . Utility 43 | 1 2 . . . 7 1 2 1 9 4 11 1 4 Device 6 | . . . . . 2 . . 1 2 . 1 . . Storage 3 | 1 1 . . . 1 . . . . . . . . Processor 12 | . 1 . . . 1 . 2 . 6 1 1 . . Hackware 9 | . . . . . . . . . . 2 5 1 1 Protection 13 | . . . . . 3 1 . . 1 1 4 . 3 Artifact . | . . . . . . . . . . . . . . Weapon 70 | 3 2 . . 1 4 8 . 1 10 7 17 5 12 Energy Gun 1 | 1 . . . . . . . . . . . . . Energy Cannon 3 | . 1 . . . . 1 . . . . . . 1 Ballistic Gun 3 | 2 1 . . . . . . . . . . . . Ballistic Cannon 1 | . . . . 1 . . . . . . . . . Launcher 8 | . . . . . . . . . . 1 2 1 4 Special Weapon 8 | . . . . . . . . . . . 5 1 2 Impact Weapon 29 | . . . . . 4 4 . 1 5 3 6 3 3 Slashing Weapon 17 | . . . . . . 3 . . 5 3 4 . 2 Piercing Weapon . | . . . . . . . . . . . . . . Special Melee Weapon . | . . . . . . . . . . . . . . Unidentified Prototypes 2 | . . . . . . . . 1 1 . . . . Corrupted Parts 4 | . . . . . 1 . . . 3 . . . . System Corruption 26 | . . . . . 1 . . . 25 . . . . Parts Lost 43 | . . . . . 9 3 1 . 13 . 5 . 12 Power 3 | . . . . . . . . . 1 . 1 . 1 Propulsion 22 | . . . . . 6 1 1 . 7 . 1 . 6 Utility 13 | . . . . . 3 2 . . 4 . 2 . 2 Weapon 5 | . . . . . . . . . 1 . 1 . 3 Highest Loss Streak 8 | . . . . . 5 2 1 . 5 . 2 . 8 To Critical Strikes . | . . . . . . . . . . . . . . Average Slot Usage (%) 88 | . 91 100 100 100 88 87 81 89 80 89 88 92 93 Engine 7 | . 14 14 14 14 8 9 9 7 6 6 5 . . Treads 2 | . . . . . . . . 6 2 6 6 5 3 Leg 24 | . 28 28 28 28 29 34 33 23 19 19 19 17 19 Device 3 | . . . . . 8 8 . 5 5 . 1 . . Storage 8 | . 14 14 14 14 9 9 9 7 7 6 6 5 4 Processor 14 | . 6 14 14 14 9 . 2 15 20 26 20 17 17 Hackware 4 | . . . . . . . . . . 4 10 17 16 Protection 3 | . . . . . 3 9 9 7 1 6 3 5 5 Energy Cannon 2 | . 8 14 14 14 . . . . . . . . . Ballistic Gun 1 | . 14 14 14 4 . . . . . . . . . Impact Weapon 9 | . . . . . 17 17 18 15 7 11 8 8 7 Slashing Weapon 2 | . . . . . . . . . 6 . 1 5 2 Naked Turns . | . . . . . . . . . . . . . . Heaviest Build 50 | 14 21 21 21 21 50 50 41 46 46 46 46 41 49 Greatest Support 150 | 20 20 20 20 20 61 61 61 51 150 150 75 75 100 Greatest Overweight (x) 2 | 2 1 1 1 1 2 1 . . 2 . 1 . 1 Average Overweight (x) . | . . 1 1 1 . . . . . . . . . Largest Inventory Capacity 15 | 8 10 10 10 10 15 15 15 15 15 15 15 15 15 Average Capacity 13 | 7 9 10 10 10 12 15 15 15 15 15 15 15 14 Most Carried 15 | 4 8 8 9 10 14 15 15 15 15 15 15 15 15 Average Carried 12 | 2 6 7 8 9 9 14 14 14 13 14 14 14 14 Final Capacity 15 | 8 10 10 10 10 15 15 15 15 15 15 15 15 5 Final Carried 15 | 4 7 8 9 10 14 14 15 15 15 14 15 15 5 Class Distribution -------------------- 66% | Mutant 14% | Scavenger-Mutant 11% | Bothacker-Mutant 7% | Commander-Mutant Dominant Class ---------------- Mutant | -10/Materials Mutant | -10/Mines Mutant | -10/Exiles Mutant | -9/Mines Mutant | -8/Materials Mutant | -8/Garrison Mutant | -8/Materials Mutant | -7/Factory Mutant | -7/Garrison Scavenger-Mutant | -6/Factory Mutant | -6/Garrison Bothacker-Mutant | -5/Factory Commander-Mutant | -5/Extension Resources | -11 -10 -10 -10 -9 -8 -8 -8 -7 -7 -6 -6 -5 -5 ----------- Run | Jun Mat Min Exi Min Mat Gar Mat Fac Gar Fac Gar Fac Ext Matter Collected 2965 | 240 52 23 . 22 200 177 51 70 382 163 633 60 892 Remotely . | . . . . . . . . . . . . . . Salvage Created 6569 | . 84 31 . 83 1269 379 100 59 1898 327 711 109 1519 Parts 177 | . 3 2 . 2 34 15 1 2 42 12 24 6 34 Haulers Intercepted 5 | . 1 . . . 2 . . 1 . . . . 1 Recyclers Shooed 2 | . . . . . . . . . . . . . 2 Parts Field Recycled . | . . . . . . . . . . . . . . Retrieved Matter . | . . . . . . . . . . . . . . Parts Self-Destructed . | . . . . . . . . . . . . . . Prevented . | . . . . . . . . . . . . . . Kills | -11 -10 -10 -10 -9 -8 -8 -8 -7 -7 -6 -6 -5 -5 ------- Run | Jun Mat Min Exi Min Mat Gar Mat Fac Gar Fac Gar Fac Ext Combat Hostiles Destroyed 129 | . 1 1 . 2 25 12 4 . 26 6 19 2 31 Melee 47 | . . . . . 11 8 . . 17 1 10 . . Guns 2 | . . 1 . 1 . . . . . . . . . Cannons 3 | . 1 . . 1 . . . . . . . . 1 AOE 35 | . . . . . . . . . . 3 6 1 25 Classes Destroyed 15 | . 2 . . . 8 . . . 2 . 2 . 1 Worker 7 | . . . . . 3 . . 1 . 1 . . 2 Builder 2 | . . . . . 1 . . . . . . . 1 Hauler 5 | . 1 . . . 2 . . 1 . . . . 1 Recycler 3 | . . . . . . . . . . . . . 3 Mechanic 2 | . . . . . . . . . . . 1 1 . Operator 1 | . . . . . 1 . . . . . . . . Watcher 2 | . . . . . 2 . . . . . . . . Swarmer 33 | . . . . . 4 8 2 . 6 . 4 . 9 Cutter 4 | . . . . . . . . . . . 4 . . Grunt 55 | . 1 1 . 2 11 . . . 16 4 7 1 12 Duelist 5 | . . . . . 1 . . . . . 1 1 2 Sentry 18 | . . . . . 8 2 2 . 1 1 1 . 3 Specialist 4 | . . . . . . . . . 2 . . . 2 Hunter 4 | . . . . . 1 2 . . . . 1 . . Programmer 6 | . . . . . . . . . 1 1 2 . 2 Thug 1 | . . . . . . . . . . . . . 1 Butcher 2 | . . . . . . . . . . . . . 2 Best Kill Streak 12 | . 2 1 . 2 9 2 2 2 6 4 4 3 12 Combat Bots Only 9 | . 1 1 . 2 8 2 2 . 6 4 4 2 9 Max Kills in Single Turn 4 | . 1 1 . 1 1 2 1 1 1 3 2 2 4 Gunslinging . | . . . . . . . . . . . . . . Exploded 4 | . . . . . . . . . . 3 2 1 4 Melee 2 | . . . . . 1 2 . . 1 1 1 . . Uniques/NPCs Destroyed . | . . . . . . . . . . . . . . Combat | -11 -10 -10 -10 -9 -8 -8 -8 -7 -7 -6 -6 -5 -5 -------- Run | Jun Mat Min Exi Min Mat Gar Mat Fac Gar Fac Gar Fac Ext Damage Taken 9901 | . . . . 63 1822 714 223 . 2090 226 1884 255 2624 Core 2264 | . . . . . 399 93 41 . 448 23 251 6 1003 Absorbed by Shields 848 | . . . . . . 265 . . 448 . 135 . . Redirected to Shielding 37 | . . . . . . . . . . . . . 37 Regen/Repaired (Parts) 1026 | . . . . . . . . . . 91 368 567 . Core Remaining (%) 61 | 100 . . . 100 . . 3 . 36 . 67 . . Volleys Fired 138 | . 2 3 . 4 . 2 . . . 2 30 7 88 Largest 2 | . 2 2 . 2 . 1 . . . 1 1 1 1 Hottest 90 | . 83 83 . 83 . 75 . . . 39 39 39 90 Shots Fired 147 | . 4 6 . 8 . 1 . . . 2 31 7 88 Gun 9 | . 2 3 . 4 . . . . . . . . . Cannon 32 | . 2 3 . 4 . 1 . . . . . . 22 Launcher 43 | . . . . . . . . . . 2 11 5 25 Special 63 | . . . . . . . . . . . 20 2 41 Kinetic 9 | . 2 3 . 4 . . . . . . . . . Thermal 32 | . 2 3 . 4 . 1 . . . . . . 22 Explosive 43 | . . . . . . . . . . 2 11 5 25 Electromagnetic . | . . . . . . . . . . . . . . Robot Hit Streak 15 | . 1 5 . 8 . . . . . 10 11 8 15 Robot Miss Streak 3 | . 1 1 . . . . . . . . 3 2 2 Penetration Max . | . . . . . . . . . . . . . . Secondary Targets . | . . . . . . . . . . . . . . Shots Hit Robots 394 | . 2 5 . 7 79 37 15 2 77 8 65 6 91 Core Hits 203 | . 2 2 . 3 10 7 . . 28 10 27 10 104 Critical Kills 4 | . . . . . . 2 . . . . 1 . 1 Critical Parts Destroyed 38 | . . . . . 17 2 2 . 6 2 3 . 6 Critical Strikes 46 | . . . . . 18 4 2 . 8 2 4 . 8 Smash 43 | . . . . . 18 4 2 . 6 2 4 . 7 Sever 3 | . . . . . . . . . 2 . . . 1 Melee Attacks 528 | . . . . . 135 79 33 2 150 7 72 1 49 Impact 409 | . . . . . 135 64 33 2 77 5 49 1 43 Slashing 119 | . . . . . . 15 . . 73 2 23 . 6 Piercing . | . . . . . . . . . . . . . . Sneak Attacks 22 | . . . . . 6 . . 2 1 1 4 . 8 Combat Hostiles 2 | . . . . . . . . . 1 . 1 . . Follow-up Attacks 59 | . . . . . 16 10 6 . 16 1 6 . 4 Damage Inflicted 21384 | . 40 95 . 116 3359 1618 485 161 3920 807 3110 825 6848 Guns 108 | . 17 48 . 43 . . . . . . . . . Cannons 469 | . 17 35 . 70 . . . . . . . . 347 Explosions 7229 | . . . . . . . . . . 488 1097 771 4873 Melee 13520 | . . . . . 3359 1618 485 161 3906 319 1993 54 1625 Ramming 58 | . 6 12 . 3 . . . . 14 . 20 . 3 Kinetic 108 | . 17 48 . 43 . . . . . . . . . Thermal 469 | . 17 35 . 70 . . . . . . . . 347 Explosive 7229 | . . . . . . . . . . 488 1097 771 4873 Electromagnetic . | . . . . . . . . . . . . . . Impact 10218 | . . . . . 3359 1197 485 161 1774 276 1488 54 1424 Slashing 3302 | . . . . . . 421 . . 2132 43 505 . 201 Piercing . | . . . . . . . . . . . . . . Highest Corruption 25 | . . . . . 11 11 12 . 25 . 3 . 8 Average Corruption 8 | . . . . . 3 11 11 . 13 . 3 . 5 Corruption Purged . | . . . . . . . . . . . . . . Corruption Blocked . | . . . . . . . . . . . . . . Effects 201 | . . . . . 11 42 23 . 78 . 27 . 20 Message Errors 49 | . . . . . 1 13 5 . 24 . 4 . 2 Matter Fused 44 | . . . . . 3 10 6 . 17 . 3 . 5 Heat Flow Errors 32 | . . . . . . 6 6 . 12 . 5 . 3 Energy Discharges 35 | . . . . . 4 4 2 . 14 . 6 . 5 Parts Rejected 2 | . . . . . . . 1 . . . . . 1 Parts Fused 5 | . . . . . 1 . 1 . 2 . 1 . . Data Loss (minor) 20 | . . . . . 2 6 2 . 7 . 2 . 1 Data Loss (major) 5 | . . . . . . 1 . . 2 . . . 2 Misfires 1 | . . . . . . . . . . . 1 . . Alerts 7 | . . . . . . 1 . . . . 5 . 1 Weapon Failures 1 | . . . . . . 1 . . . . . . . Overload Shots . | . . . . . . . . . . . . . . Overflow Damage 3548 | . . . . . 1243 425 87 61 605 84 357 14 672 Projectiles 51 | . . . . . 13 . . . . . . . 38 Explosions 11 | . . . . . . . . . . . 3 . 8 Melee 3486 | . . . . . 1230 425 87 61 605 84 354 14 626 Knockbacks 43 | . . . . . 17 9 1 . 4 1 4 1 6 Impact 40 | . . . . . 15 8 1 . 4 1 4 1 6 Kinetic . | . . . . . . . . . . . . . . Secondary 3 | . . . . . 2 1 . . . . . . . Self-Inflicted Damage 267 | . . . . . . . . . . . 169 17 81 Shots 8 | . . . . . . . . . . . 4 1 3 Rammed . | . . . . . . . . . . . . . . Targets Rammed 17 | . 1 4 . 1 . . . . 1 . 9 . 1 Kicked 17 | . 1 4 . 1 . . . . 1 . 9 . 1 Crushed . | . . . . . . . . . . . . . . Highest Temperature 269 | . 21 21 . 102 7 269 260 . 266 2 236 15 235 Average Temperature 86 | . 11 11 . 48 5 110 94 . 96 1 94 9 79 Received Heat Transfer 2330 | . . . . 18 549 21 54 . 724 81 397 69 417 Effects 7 | . . . . . . 1 . . 6 . . . . Energy Bleed 1 | . . . . . . 1 . . . . . . . Interference 6 | . . . . . . . . . 6 . . . . Siege Activations . | . . . . . . . . . . . . . . Robots Corrupted . | . . . . . . . . . . . . . . Combat Hostiles . | . . . . . . . . . . . . . . Parts Fried 51 | . . . . . 24 3 5 2 6 1 2 . 8 Impact Corruptions 123 | . . . . . 48 13 5 2 21 3 13 2 16 Robots Melted . | . . . . . . . . . . . . . . Combat Hostiles . | . . . . . . . . . . . . . . Parts Melted . | . . . . . . . . . . . . . . Heat Transferred 629 | . 37 74 . 148 . . . . . . . . 370 Parts Sabotaged . | . . . . . . . . . . . . . . Parts Stolen . | . . . . . . . . . . . . . . Parts Stripped . | . . . . . . . . . . . . . . Power Chain Reactions . | . . . . . . . . . . . . . . Missiles Intercepted . | . . . . . . . . . . . . . . Alert | -11 -10 -10 -10 -9 -8 -8 -8 -7 -7 -6 -6 -5 -5 ------- Run | Jun Mat Min Exi Min Mat Gar Mat Fac Gar Fac Gar Fac Ext Peak Influence 2163 | . 62 58 . 162 414 833 454 182 1425 826 1533 1014 2163 Initial 804 | . . 24 . . . 210 405 170 127 747 453 804 398 Average 574 | . 18 32 . 89 193 490 380 171 660 740 969 834 986 Maximum Alert Level 5 | . . . . . 2 3 2 . 4 3 4 3 5 Low Security (%) 23 | 100 100 100 . 100 55 . . 100 9 . . . . Level 1 15 | . . . . . 37 53 44 . 10 . . . 2 Level 2 25 | . . . . . 6 33 55 . 37 25 30 . 39 Level 3 23 | . . . . . . 13 . . 27 74 32 100 32 Level 4 8 | . . . . . . . . . 14 . 37 . 2 Level 5 2 | . . . . . . . . . . . . . 18 High Security . | . . . . . . . . . . . . . 3 Max Security . | . . . . . . . . . . . . . . Squads Dispatched 19 | . 1 . . . 3 . 1 1 . 2 . 2 9 Investigation 2 | . . . . . 1 . 1 . . . . . . Extermination 1 | . . . . . . . . . . 1 . . . Reinforcement 6 | . 1 . . . 2 . . 1 . . . . 2 Assault 10 | . . . . . . . . . . 1 . 2 7 Garrison . | . . . . . . . . . . . . . . Intercept . | . . . . . . . . . . . . . . Searches Triggered . | . . . . . . . . . . . . . . Construction Impeded 1 | . . . . . . . . . . . . . 1 Haulers Reinforced . | . . . . . . . . . . . . . . Active Scanning Responses . | . . . . . . . . . . . . . . Cargo Convoy Interrupts . | . . . . . . . . . . . . . . Alert ID Control Effect 3 | . . . . . . . . . . . . . 3 Stealth | -11 -10 -10 -10 -9 -8 -8 -8 -7 -7 -6 -6 -5 -5 --------- Run | Jun Mat Min Exi Min Mat Gar Mat Fac Gar Fac Gar Fac Ext Distress Signals 6 | . 1 . . . 3 . 1 . . . . . 1 Communications Jammed . | . . . . . . . . . . . . . . Distress Signals . | . . . . . . . . . . . . . . Times Spotted 233 | . 6 2 . 6 36 15 6 1 32 10 35 8 76 Peak Tracking Total 20 | . 3 2 . 3 8 6 5 . 6 6 5 7 20 Tactical Retreats 22 | . 1 . . . 6 4 . . 5 1 2 . 3 Traps | -11 -10 -10 -10 -9 -8 -8 -8 -7 -7 -6 -6 -5 -5 ------- Run | Jun Mat Min Exi Min Mat Gar Mat Fac Gar Fac Gar Fac Ext Traps Triggered 15 | . . . . . 2 3 . . 5 1 1 . 3 Indirectly . | . . . . . . . . . . . . . . Trap Hack Attempts . | . . . . . . . . . . . . . . Triggered . | . . . . . . . . . . . . . . Disarmed . | . . . . . . . . . . . . . . Reprogrammed . | . . . . . . . . . . . . . . Reused . | . . . . . . . . . . . . . . Traps Extracted . | . . . . . . . . . . . . . . Installed . | . . . . . . . . . . . . . . Triggered 1 | . . . . . . . . . 1 . . . . Most Traps Carried 3 | . . . . . . 3 . . . . . . . Machines | -11 -10 -10 -10 -9 -8 -8 -8 -7 -7 -6 -6 -5 -5 ---------- Run | Jun Mat Min Exi Min Mat Gar Mat Fac Gar Fac Gar Fac Ext Machines Disabled 23 | . . . . . 1 6 . . 3 . 5 1 7 Max in Single Turn 2 | . . . . . 1 1 . . 1 . 1 1 2 Garrison Relay 9 | . . . . . . 1 . . 3 . 5 . . Energy Cycler 2 | . . . . . . . . . . . . . 2 Machines Repaired . | . . . . . . . . . . . . . . Machines Sabotaged . | . . . . . . . . . . . . . . Overloaded Fab Kills . | . . . . . . . . . . . . . . Hacking | -11 -10 -10 -10 -9 -8 -8 -8 -7 -7 -6 -6 -5 -5 --------- Run | Jun Mat Min Exi Min Mat Gar Mat Fac Gar Fac Gar Fac Ext Machines Accessed 26 | . 1 . 2 . 4 2 2 3 2 4 2 1 3 Terminals 20 | . 1 . . . 3 2 2 2 2 2 2 1 3 Fabricators 1 | . . . . . . . . . . 1 . . . Repair Stations . | . . . . . . . . . . . . . . Recycling Units . | . . . . . . . . . . . . . . Scanalyzers . | . . . . . . . . . . . . . . Garrison Access 3 | . . . . . 1 . . 1 . 1 . . . Total Hacks 51 | . 3 . 2 . 7 2 6 6 4 10 5 1 5 Successful 21 | . 1 . 2 . 3 1 1 2 1 7 . 1 2 Failed 30 | . 2 . . . 4 1 5 4 3 3 5 . 3 Catastrophic 3 | . . . . . . 1 . 1 1 . . . . Database Lockouts . | . . . . . . . . . . . . . . Manual 22 | . 3 . 1 . 5 . 4 5 . 4 . . . Terminals 44 | . 3 . . . 6 2 6 5 4 7 5 1 5 Fabricators 2 | . . . . . . . . . . 2 . . . Repair Stations . | . . . . . . . . . . . . . . Recycling Units . | . . . . . . . . . . . . . . Scanalyzers . | . . . . . . . . . . . . . . Garrison Access 3 | . . . . . 1 . . 1 . 1 . . . Terminal Hacks 13 | . . . 2 . 2 1 . . 1 4 . 1 2 Record 1 | . . . 1 . . . . . . . . . . Robot Schematic 1 | . . . . . . . . . . 1 . . . Open Door 3 | . . . . . . . . . . . . 1 2 Branch Access Points 1 | . . . . . . . . . . 1 . . . Emergency Access Points 2 | . . . . . . 1 . . 1 . . . . Fabricator Index 1 | . . . . . . . . . . 1 . . . Hauler Manifests 2 | . . . . . 1 . . . . 1 . . . Zone Layout 1 | . . . . . 1 . . . . . . . . EX-Prototype ID Bank 1 | . . . 1 . . . . . . . . . . Fabricator Hacks 2 | . . . . . . . . . . 2 . . . Load Schematic 1 | . . . . . . . . . . 1 . . . Build 1 | . . . . . . . . . . 1 . . . Repair Station Hacks . | . . . . . . . . . . . . . . Recycling Unit Hacks . | . . . . . . . . . . . . . . Scanalyzer . | . . . . . . . . . . . . . . Garrison Access Hacks 3 | . . . . . 1 . . 1 . 1 . . . Unlock Access 3 | . . . . . 1 . . 1 . 1 . . . Unauthorized Hacks 3 | . 1 . . . . . 1 1 . . . . . Terminals 3 | . 1 . . . . . 1 1 . . . . . Botnet 3 | . 1 . . . . . 1 1 . . . . . Fabricators . | . . . . . . . . . . . . . . Repair Stations . | . . . . . . . . . . . . . . Recycling Units . | . . . . . . . . . . . . . . Scanalyzers . | . . . . . . . . . . . . . . Garrison Access . | . . . . . . . . . . . . . . Data Cores Recovered 1 | . . . . . 1 . . . . . . . . Used 1 | . . . . . 1 . . . . . . . . Hacking Detections 18 | . . . . . 4 2 2 3 1 2 2 . 2 Full Trace Events 3 | . . . . . . . 1 . . . 2 . . Feedback Events 1 | . . . . . . . 1 . . . . . . Corruption 1 | . . . . . . . 1 . . . . . . Feedback Blocked . | . . . . . . . . . . . . . . Robot Schematics Acquired 1 | . . . . . . . . . . 1 . . . Robots Built 1 | . . . . . . . . . . 1 . . . Authchips 1 | . . . . . . . . . . 1 . . . Time 58 | . . . . . . . . . . 58 . . . Total Robot Build Rating 3 | . . . . . . . . . . 3 . . . Part Schematics Acquired . | . . . . . . . . . . . . . . Parts Built . | . . . . . . . . . . . . . . Authchips . | . . . . . . . . . . . . . . Time . | . . . . . . . . . . . . . . Total Part Build Rating . | . . . . . . . . . . . . . . Parts Repaired . | . . . . . . . . . . . . . . Time . | . . . . . . . . . . . . . . Parts Recycled . | . . . . . . . . . . . . . . Recycled Matter . | . . . . . . . . . . . . . . Retrieved Matter . | . . . . . . . . . . . . . . Retrieved Components . | . . . . . . . . . . . . . . Parts Scanalyzed . | . . . . . . . . . . . . . . Part Schematics Acquired . | . . . . . . . . . . . . . . Parts Damaged . | . . . . . . . . . . . . . . Bothacking | -11 -10 -10 -10 -9 -8 -8 -8 -7 -7 -6 -6 -5 -5 ------------ Run | Jun Mat Min Exi Min Mat Gar Mat Fac Gar Fac Gar Fac Ext Used RIF Installer 3 | . . . . . . 1 . . 1 . 1 . . Robot Detection 1 | . . . . . . . . . 1 . . . . Alert ID Control 1 | . . . . . . . . . . . 1 . . Robots Hacked 14 | . . . . . . . . . . . 9 1 4 Non-combat 1 | . . . . . . . . . . . . 1 . Combat 13 | . . . . . . . . . . . 9 . 4 Robot Hacks Applied 14 | . . . . . . . . . . . 9 1 4 spike_heat 1 | . . . . . . . . . . . 1 . . amplify_resonance 1 | . . . . . . . . . . . . . 1 reboot_system 1 | . . . . . . . . . . . . . 1 streamctrl_high 3 | . . . . . . . . . . . 3 . . formatsys_low 1 | . . . . . . . . . . . . 1 . formatsys_high 7 | . . . . . . . . . . . 5 . 2 Relay Couplers Released 38 | . . . . . . 5 . . 9 . 24 . . Machine Destruction 35 | . . . . . . 5 . . 9 . 21 . . Programmers 3 | . . . . . . . . . . . 3 . . Attached 7 | . . . . . . . . . . . 5 1 1 Fabnet Peak Effective % . | . . . . . . . . . . . . . . Robots Rewired 15 | . . . . . . . . . . . . . 15 Allies Hacked . | . . . . . . . . . . . . . . Hacks Repelled . | . . . . . . . . . . . . . . Allies | -11 -10 -10 -10 -9 -8 -8 -8 -7 -7 -6 -6 -5 -5 -------- Run | Jun Mat Min Exi Min Mat Gar Mat Fac Gar Fac Gar Fac Ext Total Allies 42 | . . 5 . . . . . . . 1 8 1 27 Largest Group 14 | . . 5 5 3 3 . . . . 1 3 4 14 Highest-Rated Group 441 | . . 79 79 40 40 . . . . 23 93 105 441 Highest-Rated Ally 49 | . . 31 31 16 16 . . . . 23 32 32 49 Total Orders 40 | . . . . . . . . . . 1 21 6 12 STAY 20 | . . . . . . . . . . . 11 2 7 FOLLOW 13 | . . . . . . . . . . . 6 2 5 AID 7 | . . . . . . . . . . 1 4 2 . Ally Attacks 311 | . . 5 . 24 6 . . . . . 50 13 213 Total Damage 5659 | . . 60 . 301 57 . . . . . 903 393 3945 Kills 44 | . . 1 . 4 . . . . . . 5 4 30 Allies Corrupted 3 | . . . . . . . . . . . 1 . 2 Allies Melted 2 | . . . . . . . . . . . 1 . 1 Intel | -11 -10 -10 -10 -9 -8 -8 -8 -7 -7 -6 -6 -5 -5 ------- Run | Jun Mat Min Exi Min Mat Gar Mat Fac Gar Fac Gar Fac Ext Robot Analysis Total . | . . . . . . . . . . . . . . Derelict Logs Recovered 3 | . . 2 . 1 . . . . . . . . . Drone Launches . | . . . . . . . . . . . . . . Drone Recoveries . | . . . . . . . . . . . . . . Exploration | -11 -10 -10 -10 -9 -8 -8 -8 -7 -7 -6 -6 -5 -5 ------------- Run | Jun Mat Min Exi Min Mat Gar Mat Fac Gar Fac Gar Fac Ext Turns Passed 12929 | 58 206 622 577 604 1629 1264 717 291 2454 867 1673 410 1557 Spaces Moved 7080 | 42 117 319 304 310 791 653 325 228 1335 586 887 184 999 Core 27 | 12 . . . . . . . . . . . . 15 Treads 326 | . . . . . . . . . 178 17 3 128 . Legs 6727 | 30 117 319 304 310 791 653 325 228 1157 569 884 56 984 Wheels . | . . . . . . . . . . . . . . Hover . | . . . . . . . . . . . . . . Flight . | . . . . . . . . . . . . . . Fastest Speed 50 | 50 120 190 190 190 120 120 120 120 120 120 120 120 50 Average Speed 134 | 104 158 190 190 190 123 120 120 120 139 121 120 147 119 Slowest Speed 260 | 150 190 190 190 190 260 190 120 120 260 160 190 160 190 Overloaded Moves . | . . . . . . . . . . . . . . Propulsion Burnouts . | . . . . . . . . . . . . . . Robots Hopped . | . . . . . . . . . . . . . . Cave-ins Triggered 1 | . . . . . 1 . . . . . . . . Exploration Rate (%) 52 | 3 37 91 72 69 68 69 34 8 94 12 84 8 86 Regions Visited 13 Branch Regions 4 Pre-discovered Areas 2 | . . . 1 1 . . . . . . . . . Known Exits Taken 3 | . . . . . 1 . . 1 . 1 . . . Unknown Exits Taken 7 | 1 1 1 1 1 . . 1 . . . . 1 . Scrap Searched 2 | . . 1 . 1 . . . . . . . . . Spaces Dug 72 | . . . . . 19 9 12 . 25 . 3 . 4 Terrain Destroyed 524 | . . . . . 19 9 12 . 25 30 119 38 272 Melee 71 | . . . . . 19 9 12 . 25 . 3 . 3 Projectile 12 | . . . . . . . . . . . . . 12 AOE 441 | . . . . . . . . . . 30 116 38 257 Terrain Rammed . | . . . . . . . . . . . . . . Walls Destroyed . | . . . . . . . . . . . . . . Machines Disabled . | . . . . . . . . . . . . . . Actions | -11 -10 -10 -10 -9 -8 -8 -8 -7 -7 -6 -6 -5 -5 --------- Run | Jun Mat Min Exi Min Mat Gar Mat Fac Gar Fac Gar Fac Ext Total 9533 | 52 133 326 304 317 1250 1007 606 241 1700 728 1343 311 1215 Wait 1528 | . 2 . . . 288 252 254 4 175 109 290 109 45 Move 7069 | 41 116 318 303 309 791 652 324 228 1334 585 886 183 999 Hop . | . . . . . . . . . . . . . . Pick Up 70 | 4 3 1 1 1 19 6 1 1 13 4 12 3 1 Fast Attach 58 | 6 3 . . 1 12 . 4 3 9 3 11 . 6 Attach 31 | . . . . . 5 2 . 1 7 4 8 3 1 Detach 9 | . 2 . . . 4 1 . . . . 1 . 1 Swap 84 | 1 1 . . . 5 7 . . 12 10 21 4 23 Drop 68 | . 3 . . 1 17 5 . 2 10 6 12 1 11 Fire 138 | . 2 3 . 4 . 2 . . . 2 30 7 88 Melee 428 | . . . . . 109 65 23 2 121 5 63 1 39 Ram . | . . . . . . . . . . . . . . Kick 17 | . 1 4 . 1 . . . . 1 . 9 . 1 Crush . | . . . . . . . . . . . . . . Escape Stasis 33 | . . . . . . 15 . . 18 . . . . Rewire . | . . . . . . . . . . . . . . Trap . | . . . . . . . . . . . . . . Miscellaneous . | . . . . . . . . . . . . . . Route ------- -11/Junkyard -10/Materials -10/Mines (discovered 2 exits: [*Mat] / *Exi) -10/Exiles -9/Mines -8/Materials (discovered 3 exits: *Fac x2 / Gar) -8/Garrison (discovered 2 exits: *Mat x2) -8/Materials -7/Factory (discovered 2 exits: [*Low] / Gar) -7/Garrison (discovered 3 exits: *Fac x3) -6/Factory (discovered 4 exits: *Fac / Low x2 / Gar) -6/Garrison (discovered 3 exits: *Fac x3) -5/Factory -5/Extension (discovered 3 exits: [*Fac x2] / [*Cet]) History --------- Turn | Location | Event 16 | -11/Junkyard | Discovered new exit (range 15) 59 | -11/Junkyard | Entered Materials 244 | -10/Materials | Discovered new exit (range 12) 265 | -10/Materials | Entered Mines 271 | -10/Mines | Assisted by bots powering up and referring to "LRC-V3" 314 | -10/Mines | Build established: Mutant 334 | -10/Mines | Discovered new exit (range 5) 547 | -10/Mines | Learned Materials stockpile data 632 | -10/Mines | Learned Materials stockpile data 880 | -10/Mines | Deemed a non-threat by the Exiles lab entrance 880 | -10/Mines | Discovered new exit (range 5) 887 | -10/Mines | Entered Exiles 887 | -10/Exiles | Accompanied by 5 allies 917 | -10/Exiles | Led the pair of lost Derelicts to a safe place 935 | -10/Exiles | Met 8R-AWN 965 | -10/Exiles | Met EX-HEX 1017 | -10/Exiles | Met EX-BIN 1047 | -10/Exiles | Aligned with FarCom system 1049 | -10/Exiles | Given EX-Vault access code 1102 | -10/Exiles | Opened EX-Vault 1114 | -10/Exiles | Found Modified TNC 1156 | -10/Exiles | Warned to stay clear of 0b10 Research branches 1223 | -10/Exiles | Met EX-DEC 1230 | -10/Exiles | Learned location of Zion (-7) 1449 | -10/Exiles | Discovered new exit (range 10) 1464 | -10/Exiles | Left Exiles lab with Modified TNC 1464 | -10/Exiles | Entered Mines 1464 | -9/Mines | Accompanied by 3 allies 1703 | -9/Mines | Learned location of Storage (-7) 2048 | -9/Mines | Discovered new exit (range 12) 2061 | -9/Mines | Learned Materials terminal intel 2068 | -9/Mines | Entered Materials 2068 | -8/Materials | Accompanied by 3 allies 2068 | -8/Materials | Evolved 4 slots: Propulsion x2, Utility x2 2070 | -8/Materials | Loaded intel: 12 terminal locations 2996 | -8/Materials | Discovered new exit (range 8) 3118 | -8/Materials | Core integrity fell below 50% 3166 | -8/Materials | Lost 5 parts (4n1u) 3181 | -8/Materials | Destroyed 8 combat bots 3427 | -8/Materials | Discovered new exit (range 11) 3542 | -8/Materials | Crushed by falling debris 3542 | -8/Materials | System corruption reached 10% 3573 | -8/Materials | Lost 3 parts (1n2u) 3697 | -8/Materials | Identified exit to Garrison 3697 | -8/Materials | Entered Garrison 3946 | -8/Garrison | Garrison Relay disabled 4014 | -8/Garrison | Installed Relay Interface Framework 4298 | -8/Garrison | Triggered checkpoint 4533 | -8/Garrison | Core integrity fell below 20% 4668 | -8/Garrison | Discovered new exit (range 9) 4738 | -8/Garrison | Triggered checkpoint 4885 | -8/Garrison | Discovered new exit (range 10) 4940 | -8/Garrison | Triggered checkpoint 4961 | -8/Garrison | Entered Materials 5673 | -8/Materials | Discovered new exit (range 5) 5678 | -8/Materials | Entered Factory 5678 | -7/Factory | Evolved 2 slots: Utility x2 5920 | -7/Factory | Discovered new exit (range 16) 5969 | -7/Factory | Identified exit to Garrison 5969 | -7/Factory | Entered Garrison 6136 | -7/Garrison | Triggered checkpoint 6268 | -7/Garrison | System corruption reached 10% 6282 | -7/Garrison | Lost 5 parts (3n2u) 6341 | -7/Garrison | Discovered new exit (range 13) 6400 | -7/Garrison | Triggered checkpoint 6475 | -7/Garrison | Garrison Relay disabled 6568 | -7/Garrison | Triggered checkpoint 6688 | -7/Garrison | Discovered new exit (range 10) 6890 | -7/Garrison | Triggered checkpoint 7371 | -7/Garrison | Garrison Relay disabled 7646 | -7/Garrison | Triggered checkpoint 7689 | -7/Garrison | Garrison Relay disabled 8021 | -7/Garrison | Core integrity fell below 50% 8065 | -7/Garrison | Lost 3 parts (1p1n1u) 8158 | -7/Garrison | Discovered new exit (range 10) 8218 | -7/Garrison | Expanded RIF knowledge: Robot Detection 8278 | -7/Garrison | Triggered checkpoint 8378 | -7/Garrison | Build established: Scavenger-Mutant 8423 | -7/Garrison | Entered Factory 8423 | -6/Factory | Evolved 2 slots: Propulsion x1, Utility x1 8492 | -6/Factory | Identified exit to Garrison 8503 | -6/Factory | Discovered new exit (range 19) 8620 | -6/Factory | Identified exit to Lower Caves 8773 | -6/Factory | First assault squad dispatched 9232 | -6/Factory | Fabricated M-28 Smith (x1) 9290 | -6/Factory | Entered Garrison 9290 | -6/Garrison | Accompanied by 1 ally 9483 | -6/Garrison | Garrison Relay disabled 9814 | -6/Garrison | Build established: Mutant 9815 | -6/Garrison | Spotted B-75 Beast 9816 | -6/Garrison | Discovered new exit (range 12) 9816 | -6/Garrison | Spotted B-86 Titan 9911 | -6/Garrison | Expanded RIF knowledge: Alert ID Control 10009 | -6/Garrison | Garrison Relay disabled 10018 | -6/Garrison | Triggered checkpoint 10248 | -6/Garrison | Triggered checkpoint 10366 | -6/Garrison | Triggered checkpoint 10397 | -6/Garrison | Garrison Relay disabled 10426 | -6/Garrison | Discovered new exit (range 13) 10447 | -6/Garrison | Garrison Relay disabled 10511 | -6/Garrison | Build established: Bothacker-Mutant 10606 | -6/Garrison | Discovered new exit (range 10) 10656 | -6/Garrison | Triggered checkpoint 10698 | -6/Garrison | Garrison Relay disabled 10963 | -6/Garrison | Entered Factory 10963 | -5/Factory | Accompanied by 3 allies 10963 | -5/Factory | Evolved 2 slots: Utility x1, Weapon x1 11263 | -5/Factory | First assault squad dispatched 11337 | -5/Factory | Discovered new exit (range 6) 11373 | -5/Factory | Entered Extension 11373 | -5/Extension | Accompanied by 1 ally 11424 | -5/Extension | Rescued a captive Derelict 11424 | -5/Extension | Rescued a captive Derelict 11637 | -5/Extension | Rescued a captive Derelict 11747 | -5/Extension | Rescued a captive Derelict 11954 | -5/Extension | Rescued a captive Derelict 11973 | -5/Extension | First assault squad dispatched 11982 | -5/Extension | Rescued a captive Derelict 12110 | -5/Extension | Build established: Commander-Mutant 12424 | -5/Extension | Rescued a captive Derelict 12424 | -5/Extension | Rescued a captive Derelict 12503 | -5/Extension | Energy Cycler disabled 12503 | -5/Extension | Rescued a captive Derelict 12503 | -5/Extension | Rescued a captive Derelict 12505 | -5/Extension | Rescued a captive Derelict 12508 | -5/Extension | Rescued a captive Derelict 12508 | -5/Extension | Rescued a captive Derelict 12565 | -5/Extension | Destroyed 8 combat bots 12580 | -5/Extension | Disrupted transfer network 12591 | -5/Extension | Discovered new exit (range 12) 12592 | -5/Extension | Discovered new exit (range 8) 12608 | -5/Extension | Destroyed 9 combat bots 12773 | -5/Extension | Discovered new exit (range 19) 12776 | -5/Extension | Extracted ID and sensor layout for unrecognized location from A7's data core 12876 | -5/Extension | High security lockdown imminent 12924 | -5/Extension | Core integrity fell below 50% 12928 | -5/Extension | Core integrity fell below 20% 12930 | -5/Extension | Destroyed by H-66 Slayer with Gauss Rifle Last Messages --------------- 12919_ Imp. Medium Armor Plating destroyed. 12919_ Carbon-fiber Leg destroyed. 12919_ 4L-QDC(g) destroyed. 12920_ 12-R6Y(g) destroyed. 12920_ Penetrated by Slug. 12920_ Hvy. Missile Launcher destroyed. 12920_ Penetrated by Slug. 12920_ Mic. Nuclear Core destroyed. 12921_ The unstable cave ceiling collapses. 12921_ P-70 Sage resets D-63 Destroyer, system corruption cleaned. 12921_ Dropped Lrg. Storage Unit. 12922_ The unstable cave ceiling collapses. 12923_ Axe destroyed. 12923_ R-10 Processor destroyed. 12924_ The unstable cave ceiling collapses. 12926_ ALERT: Machine network offline. 12927_ Penetrated by Slug. 12927_ M-28 Smith fits Backup Propulsion III on H-66 Slayer. 12929_ M-28 Smith repairs Phase Shifter. 12929_ Penetrated by Slug. Map ----- +----------------------------------------------------+ | # ## # ## #???# | | ######## # #???# | | ???????# # ^ ] #???# | | ???????# #^ ^% ##### | | ???????# + ! | | ???????#################### ############## | | ??????????????????????????### # ###????????????# | | ????????????????????????????#######??????????????? | | ?????????????????????????????????????????????????? | | ?????????????????????????????????????????????????? | | ?????????????????????????????????????????????????? | | ?????????????????????????????????????????????????? | | ?????????????????????????????????????????????????? | | ?????????????????????????????????????????????????? | | ?????????????????????????????????????????????????? | | ?????????????????????????????????????????????????? | | ?????????????????????????????????????????????????? | | ???#####??????????????####???????????????????????? | | ####!!!################ ##?##????????????????????? | | # # ## # ## ####?????????????????? | | #??# # ###???????????????? | | ##### = d ################# | | % i i g | | != % * h x | | = ] b p b g h m | | == b h@ | | xl g | | ##### d ## ################## | | ????# #???????????????????? | | ????#### #####???????????????????? | | ???????######## # #???????????????????????? | | ??????????????###### ### ????????????????????????? | | ???????????????????##??##????????????????????????? | | ?????????????????????????????????????????????????? | | ?????????????????????????????????????????????????? | | | | | | | | | | | | | | | | | | | | | | | | | | | | | | | +----------------------------------------------------+ Best States ------------- Heat Dissipation 40 Energy Generation 18 Energy Capacity 300 Matter Stores 300 Matter Capacity 300 Sight Range 22 Terrain Scan Density 10 Armor Coverage 600 Utility Shielding 66 Phase Shifting 5 Evasion (%) 60 Targeting Accuracy 5 Melee Accuracy 16 Target Analysis 5 Armor Integrity Analysis 30 Recoil Reduction 4 Offensive Hacking 10 Relay Coupler Types 3 Relay Coupler Value 79 Authchip Count 1 Item Schematics ----------------- None Robot Schematics ------------------ M-28 Smith | -6/Factory | Hacked Fabricated ------------ M-28 Smith | x1 | -6/Factory | Authchip Alien Tech Used ----------------- None Achievements -------------- Ambidextrous Challenges ------------ None Game ------ Seed ConstructConstructBlade Manual? 0 Play Time 01:41:42 Cumulative 402.8 hours Start 2023.12.02 @ 21:17:41 End 2023.12.04 @ 15:58:41 Sessions 2 Manual Loads 0 Difficulty Rogue Special Mode None Game No. 161 Rogue 145 Adventurer 8 Explorer 8 Win Type - Total 33 Types 12/1/13/1/1/2/3/0/0 Lore% 92 Gallery% 89 Achievement% 80 Wizard Run 0 Options --------- ASCII 1 Keyboard 1 Movement Vi Keybinds 0 Fullscreen 2 Font 18/SmallcapsGlow Map View 76x50 Tactical HUD 1 Map Filters NONE Filters NONE Steam 0 RUN: 4c1e2e46-97d8-4a63-953b-065aa1d95d49